fUSD/lending_fUSD_20240409
["ID","MTS","AMOUNT","RATE_DAILY","PERIOD"]
[321926707,1712639438544,-314.040914,0.00020728,2]
[321926709,1712639438553,-314.040914,0.00020738,2]
[321926711,1712639438562,-314.040914,0.00020748,2]
[321926714,1712639438571,-314.040914,0.00020758,2]
[321926717,1712639438581,-314.040914,0.00020768,2]
[321926719,1712639438591,-314.040914,0.00020778,2]
[321926722,1712639438600,-314.040914,0.00020788,2]
[321926726,1712639438610,-314.040914,0.00020798,2]
[321926728,1712639438619,-314.040914,0.00020808,2]
[321926732,1712639438628,-157.71,0.00020811,2]
[321926735,1712639438638,-500.0,0.00020821,2]
[321926738,1712639438647,-500.0,0.00020821,2]
[321926740,1712639438657,-562.28449134,0.00020821,2]
[321926743,1712639438667,-500.0,0.00020821,2]
[321926745,1712639438677,-500.0,0.00020821,2]
[321926747,1712639438686,-500.0,0.00020821,2]
[321926749,1712639438695,-500.0,0.00020821,2]
[321926751,1712639438704,-500.0,0.00020821,2]
[321926753,1712639438714,-502.77336872,0.00020821,2]
[321926755,1712639438723,-500.0,0.00020821,2]
[321926757,1712639438733,-500.0,0.00020821,2]
[321926759,1712639438742,-500.0,0.00020821,2]
[321926761,1712639438751,-780.83,0.00020821,2]
[321926763,1712639438760,-502.67834581,0.00020821,2]
[321926765,1712639438769,-500.0,0.00020821,2]
[321926767,1712639438778,-503.33235994,0.00020821,2]
[321926769,1712639438787,-502.81632007,0.00020821,2]
[321926770,1712639438797,-500.0,0.00020821,2]
[321926773,1712639438808,-500.0,0.00020821,2]
[321926775,1712639438823,-1057.24,0.00020821,2]
[321926777,1712639438833,-630.37,0.00020821,2]
[321926779,1712639438843,-503.40016986,0.00020821,2]
[321926781,1712639438853,-500.0,0.00020821,2]
[321926783,1712639438862,-501.60180161,0.00020821,2]
[321926785,1712639438871,-500.0,0.00020821,2]
[321926787,1712639438881,-514.68,0.00020821,2]
[321926789,1712639438890,-619.36,0.00020821,2]
[321926791,1712639438901,-496.51677854,0.00020821,2]
[321926793,1712639438910,-500.0,0.00020821,2]
[321926795,1712639438919,-593.08,0.00020821,2]
[321926797,1712639438929,-500.0,0.00020821,2]
[321926799,1712639438938,-500.0,0.00020821,2]
[321926801,1712639438947,-500.0,0.00020821,2]
[321926803,1712639438956,-519.12353443,0.00020821,2]
[321926805,1712639438966,-738.74,0.00020821,2]
[321926807,1712639438975,-500.0,0.00020821,2]
[321926809,1712639438985,-2162.13,0.00020821,2]
[321926811,1712639438994,-501.87611416,0.00020821,2]
[321926813,1712639439003,-500.0,0.00020821,2]
[321926815,1712639439013,-500.0,0.00020821,2]
[321926817,1712639439022,-503.02377822,0.00020821,2]
[321926819,1712639439031,-500.0,0.00020821,2]
[321926821,1712639439041,-500.0,0.00020821,2]
[321926823,1712639439050,-502.77388539,0.00020821,2]
[321926825,1712639439059,-500.0,0.00020821,2]
[321926827,1712639439068,-707.97,0.00020821,2]
[321926829,1712639439079,-546.43,0.00020821,2]
[321926831,1712639439088,-359.75050188,0.00020821,2]
[321926833,1712639439098,-1568.68,0.00020821,2]
[321926835,1712639439107,-500.0,0.00020821,2]
[321926837,1712639439115,-500.0,0.00020821,2]
[321926839,1712639439125,-500.0,0.00020821,2]
[321926841,1712639439134,-1644.28,0.00020821,2]
[321926843,1712639439144,-1981.85,0.00020821,2]
[321926845,1712639439154,-500.0,0.00020821,2]
[321926847,1712639439163,-507.60337668,0.00020821,2]
[321926849,1712639439173,-500.0,0.00020821,2]
[321926851,1712639439183,-1128.99,0.00020821,2]
[321926853,1712639439192,-500.0,0.00020821,2]
[321926855,1712639439203,-500.0,0.00020821,2]
[321926857,1712639439212,-500.0,0.00020821,2]
[321926860,1712639439222,-500.0,0.00020821,2]
[321926862,1712639439235,-500.0,0.00020821,2]
[321926864,1712639439247,-787.03,0.00020821,2]
[321926866,1712639439259,-500.0,0.00020821,2]
[321926869,1712639439271,-500.0,0.00020821,2]
[321926871,1712639439283,-1718.73,0.00020821,2]
[321926873,1712639439294,-770.58,0.00020821,2]
[321926874,1712639439305,-505.03048117,0.00020821,2]
[321926875,1712639439314,-500.0,0.00020821,2]
[321926876,1712639439326,-504.47188906,0.00020821,2]
[321926877,1712639439337,-990.75,0.00020821,2]
[321926878,1712639439348,-530.34358591,0.00020821,2]
[321926880,1712639439359,-500.0,0.00020821,2]
[321926882,1712639439372,-965.57,0.00020821,2]
[321926884,1712639439384,-500.0,0.00020821,2]
[321926887,1712639439396,-500.0,0.00020821,2]
[321926889,1712639439408,-1952.39,0.00020821,2]
[321926891,1712639439420,-264.63598757,0.00020821,2]
[321926893,1712639439433,-527.85054017,0.00020821,2]
[321926896,1712639439444,-1520.69,0.00020821,2]
[321926898,1712639439455,-500.0,0.00020821,2]
[321926900,1712639439466,-500.0,0.00020821,2]
[321926902,1712639439478,-500.0,0.00020821,2]
[321926905,1712639439489,-500.0,0.00020821,2]
[321926907,1712639439501,-955.64,0.00020821,2]
[321926909,1712639439513,-500.0,0.00020821,2]
[321926912,1712639439525,-510.91990082,0.00020821,2]
[321926914,1712639439536,-522.23555095,0.00020821,2]
[321926916,1712639439548,-2077.36,0.00020821,2]
[321926918,1712639439559,-505.15518025,0.00020821,2]
[321926921,1712639439571,-771.66,0.00020821,2]
[321926923,1712639439582,-205.23285819,0.00020821,2]
[321926925,1712639439592,-500.0,0.00020821,2]
[321926927,1712639439602,-1459.63,0.00020821,2]
[321926929,1712639439616,-500.0,0.00020821,2]
[321926932,1712639439628,-500.0,0.00020821,2]
[321926934,1712639439639,-500.0,0.00020821,2]
[321926936,1712639439651,-500.0,0.00020821,2]
[321926939,1712639439663,-500.0,0.00020821,2]
[321926941,1712639439674,-1192.98,0.00020821,2]
[321926943,1712639439686,-500.0,0.00020821,2]
[321926945,1712639439698,-872.96,0.00020821,2]
[321926947,1712639439709,-505.43401499,0.00020821,2]
[321926949,1712639439720,-905.66,0.00020821,2]
[321926952,1712639439731,-500.0,0.00020821,2]
[321926954,1712639439743,-1516.4,0.00020821,2]
[321926956,1712639439756,-500.0,0.00020821,2]
[321926958,1712639439767,-506.03176628,0.00020821,2]
[321926961,1712639439780,-500.0,0.00020821,2]
[321926963,1712639439792,-500.0,0.00020821,2]
[321926966,1712639439805,-500.0,0.00020821,2]
[321926968,1712639439820,-500.0,0.00020821,2]
[321926970,1712639439833,-511.54456249,0.00020821,2]
[321926972,1712639439845,-1628.51,0.00020821,2]
[321926974,1712639439856,-500.0,0.00020821,2]
[321926977,1712639439867,-500.0,0.00020821,2]
[321926979,1712639439876,-500.0,0.00020821,2]
[321926981,1712639439887,-500.0,0.00020821,2]
[321926983,1712639439898,-500.0,0.00020821,2]
[321926985,1712639439909,-500.0,0.00020821,2]
[321926987,1712639439920,-500.0,0.00020821,2]
[321926989,1712639439933,-1581.49,0.00020821,2]
[321926992,1712639439944,-500.0,0.00020821,2]
[321926994,1712639439955,-500.0,0.00020821,2]
[321926996,1712639439967,-500.0,0.00020821,2]
[321926998,1712639439978,-500.0,0.00020821,2]
[321927001,1712639439989,-566.58,0.00020821,2]
[321927003,1712639439999,-510.82558716,0.00020821,2]
[321927005,1712639440010,-500.0,0.00020821,2]
[321927007,1712639440020,-500.0,0.00020821,2]
[321927009,1712639440030,-500.0,0.00020821,2]
[321927011,1712639440041,-516.83039828,0.00020821,2]
[321927015,1712639440052,-500.0,0.00020821,2]
[321927017,1712639440063,-515.19210534,0.00020821,2]
[321927019,1712639440073,-500.0,0.00020821,2]
[321927021,1712639440084,-500.0,0.00020821,2]
[321927023,1712639440094,-500.0,0.00020821,2]
[321927025,1712639440106,-1551.63,0.00020821,2]
[321927027,1712639440117,-500.0,0.00020821,2]
[321927030,1712639440135,-500.0,0.00020821,2]
[321927033,1712639440147,-627.13,0.00020821,2]
[321927035,1712639440158,-500.0,0.00020821,2]
[321927037,1712639440168,-500.0,0.00020821,2]
[321927039,1712639440179,-836.86,0.00020821,2]
[321927041,1712639440190,-538.29609663,0.00020821,2]
[321927043,1712639440201,-500.0,0.00020821,2]
[321927046,1712639440212,-1191.7,0.00020821,2]
[321927048,1712639440223,-500.0,0.00020821,2]
[321927049,1712639440234,-583.44,0.00020821,2]
[321927050,1712639440245,-500.0,0.00020821,2]
[321927051,1712639440256,-567.25,0.00020821,2]
[321927052,1712639440267,-918.68,0.00020821,2]
[321927053,1712639440278,-1974.39,0.00020821,2]
[321927056,1712639440289,-500.0,0.00020821,2]
[321927058,1712639440300,-764.1,0.00020821,2]
[321927060,1712639440311,-500.0,0.00020821,2]
[321927062,1712639440322,-1569.24,0.00020821,2]
[321927064,1712639440333,-777.49,0.00020821,2]
[321927067,1712639440346,-878.71,0.00020821,2]
[321927069,1712639440356,-500.0,0.00020821,2]
[321927071,1712639440367,-528.88180895,0.00020821,2]
[321927073,1712639440379,-500.0,0.00020821,2]
[321927075,1712639440390,-1772.76,0.00020821,2]
[321927077,1712639440402,-660.1,0.00020821,2]
[321927080,1712639440413,-534.90736733,0.00020821,2]
[321927082,1712639440424,-500.0,0.00020821,2]
[321927084,1712639440436,-500.0,0.00020821,2]
[321927086,1712639440447,-500.0,0.00020821,2]
[321927088,1712639440458,-522.09349027,0.00020821,2]
[321927090,1712639440468,-522.02889052,0.00020821,2]
[321927093,1712639440479,-500.0,0.00020821,2]
[321927095,1712639440489,-500.0,0.00020821,2]
[321927097,1712639440499,-546.56591022,0.00020821,2]
[321927099,1712639440510,-500.0,0.00020821,2]
[321927101,1712639440521,-500.0,0.00020821,2]
[321927103,1712639440531,-1570.44,0.00020821,2]
[321927105,1712639440541,-500.0,0.00020821,2]
[321927108,1712639440551,-500.0,0.00020821,2]
[321927110,1712639440563,-500.0,0.00020821,2]
[321927112,1712639440573,-300.0,0.00020821,2]
[321927114,1712639440584,-1367.13,0.00020821,2]
[321927116,1712639440594,-4980.02,0.00020821,2]
[321927118,1712639440605,-500.0,0.00020821,2]
[321927120,1712639440616,-500.0,0.00020821,2]
[321927122,1712639440626,-500.0,0.00020821,2]
[321927125,1712639440637,-500.0,0.00020821,2]
[321927127,1712639440647,-500.0,0.00020821,2]
[321927129,1712639440658,-500.0,0.00020821,2]
[321927131,1712639440668,-500.0,0.00020821,2]
[321927133,1712639440679,-500.0,0.00020821,2]
[321927135,1712639440690,-624.39,0.00020821,2]
[321927137,1712639440701,-500.0,0.00020821,2]
[321927140,1712639440711,-716.43,0.00020821,2]
[321927142,1712639440721,-529.1567797,0.00020821,2]
[321927144,1712639440732,-500.0,0.00020821,2]
[321927146,1712639440743,-500.0,0.00020821,2]
[321927148,1712639440753,-500.0,0.00020821,2]
[321927150,1712639440763,-1073.16,0.00020821,2]
[321927152,1712639440774,-500.0,0.00020821,2]
[321927155,1712639440784,-513.57524273,0.00020821,2]
[321927157,1712639440795,-201.08,0.00020821,2]
[321927159,1712639440805,-585.83,0.00020821,2]
[321927161,1712639440818,-521.04135567,0.00020821,2]
[321927163,1712639440830,-500.0,0.00020821,2]
[321927165,1712639440840,-500.0,0.00020821,2]
[321927167,1712639440851,-554.03,0.00020821,2]
[321927169,1712639440863,-504.03323306,0.00020821,2]
[321927172,1712639440873,-558.02658259,0.00020821,2]
[321927174,1712639440884,-500.0,0.00020821,2]
[321927176,1712639440894,-762.21,0.00020821,2]
[321927178,1712639440905,-500.0,0.00020821,2]
[321927180,1712639440915,-500.0,0.00020821,2]
[321927182,1712639440926,-500.0,0.00020821,2]
[321927185,1712639440938,-589.35,0.00020821,2]
[321927187,1712639440948,-512.75244615,0.00020821,2]
[321927189,1712639440959,-1573.34,0.00020821,2]
[321927191,1712639440969,-500.0,0.00020821,2]
[321927193,1712639440979,-500.0,0.00020821,2]
[321927195,1712639440990,-500.0,0.00020821,2]
[321927197,1712639441000,-1113.33,0.00020821,2]
[321927200,1712639441011,-2578.26,0.00020821,2]
[321927202,1712639441023,-1013.81,0.00020821,2]
[321927204,1712639441034,-553.14,0.00020821,2]
[321927206,1712639441045,-500.0,0.00020821,2]
[321927208,1712639441056,-523.76,0.00020821,2]
[321927210,1712639441066,-513.25203314,0.00020821,2]
[321927212,1712639441077,-500.0,0.00020821,2]
[321927214,1712639441088,-500.0,0.00020821,2]
[321927215,1712639441098,-543.79,0.00020821,2]
[321927216,1712639441108,-2562.22,0.00020821,2]
[321927217,1712639441117,-500.0,0.00020821,2]
[321927218,1712639441128,-375.10323707,0.00020821,2]
[321927220,1712639441142,-1249.29,0.00020821,2]
[321927222,1712639441152,-500.0,0.00020821,2]
[321927225,1712639441163,-1422.37,0.00020821,2]
[321927227,1712639441173,-588.75,0.00020821,2]
[321927229,1712639441187,-508.75366127,0.00020821,2]
[321927231,1712639441197,-500.0,0.00020821,2]
[321927233,1712639441207,-500.0,0.00020821,2]
[321927235,1712639441219,-514.50601941,0.00020821,2]
[321927238,1712639441229,-578.44037235,0.00020821,2]
[321927240,1712639441240,-500.0,0.00020821,2]
[321927242,1712639441250,-510.54665968,0.00020821,2]
[321927244,1712639441260,-882.85,0.00020821,2]
[321927246,1712639441269,-500.0,0.00020821,2]
[321927248,1712639441280,-652.83,0.00020821,2]
[321927250,1712639441290,-500.0,0.00020821,2]
[321927253,1712639441301,-500.0,0.00020821,2]
[321927255,1712639441311,-1628.7,0.00020821,2]
[321927257,1712639441321,-500.0,0.00020821,2]
[321927259,1712639441331,-681.54,0.00020821,2]
[321927261,1712639441343,-500.0,0.00020821,2]
[321927263,1712639441353,-500.0,0.00020821,2]
[321927265,1712639441364,-824.99,0.00020821,2]
[321927267,1712639441375,-164.172226,0.00020821,2]
[321927269,1712639441385,-500.0,0.00020821,2]
[321927271,1712639441395,-1041.36,0.00020821,2]
[321927274,1712639441405,-512.85357473,0.00020821,2]
[321927276,1712639441415,-356.5876184,0.00020821,2]
[321927278,1712639441424,-503.16140436,0.00020821,2]
[321927280,1712639441435,-2624.3,0.00020821,2]
[321927282,1712639441445,-509.80091351,0.00020821,2]
[321927284,1712639441454,-510.58847976,0.00020821,2]
[321927286,1712639441464,-500.0,0.00020821,2]
[321927288,1712639441474,-500.0,0.00020821,2]
[321927290,1712639441484,-500.0,0.00020821,2]
[321927292,1712639441494,-835.23,0.00020821,2]
[321927294,1712639441504,-13627.22,0.00020821,2]
[321927295,1712639441515,-1492.92,0.00020821,2]
[321927297,1712639441525,-500.0,0.00020821,2]
[321927298,1712639441534,-1389.47,0.00020821,2]
[321927300,1712639441545,-500.0,0.00020821,2]
[321927301,1712639441555,-316.98375612,0.00020821,2]
[321927303,1712639441565,-8117.6,0.00020821,2]
[321927305,1712639441575,-536.6,0.00020821,2]
[321927306,1712639441585,-500.0,0.00020821,2]
[321927308,1712639441596,-11825.6,0.00020821,2]
[321927310,1712639441606,-2396.66,0.00020821,2]
[321927311,1712639441617,-500.0,0.00020821,2]
[321927313,1712639441627,-500.0,0.00020821,2]
[321927314,1712639441637,-500.0,0.00020821,2]
[321927316,1712639441647,-500.0,0.00020821,2]
[321927318,1712639441657,-500.0,0.00020821,2]
[321927319,1712639441668,-17793.17,0.00020821,2]
[321927321,1712639441679,-500.0,0.00020821,2]
[321927322,1712639441689,-500.0,0.00020821,2]
[321927324,1712639441699,-1518.59,0.00020821,2]
[321927326,1712639441709,-509.31287673,0.00020821,2]
[321927328,1712639441719,-500.0,0.00020821,2]
[321927329,1712639441729,-1628.5,0.00020821,2]
[321927330,1712639441739,-500.0,0.00020821,2]
[321927331,1712639441749,-500.0,0.00020821,2]
[321927332,1712639441760,-3236.26,0.00020821,2]
[321927333,1712639441770,-500.0,0.00020821,2]
[321927334,1712639441780,-11107.45,0.00020821,2]
[321927335,1712639441790,-3263.54,0.00020821,2]
[321927336,1712639441800,-2782.71,0.00020821,2]
[321927337,1712639441810,-60308.56,0.00020821,2]
[321927338,1712639441824,-500.0,0.00020821,2]
[321927339,1712639441834,-500.0,0.00020821,2]
[321927340,1712639441844,-500.0,0.00020821,2]
[321927341,1712639441854,-3426.41,0.00020821,2]
[321927342,1712639441864,-500.0,0.00020821,2]
[321927405,1712639442718,-2761.45,0.00020821,2]
[321927410,1712639442751,-219.13216335,0.00020821,2]
[321927413,1712639442774,-500.0,0.00020821,2]
[321927416,1712639442794,-3433.49,0.00020821,2]
[321927418,1712639442804,-500.0,0.00020821,2]
[321927420,1712639442818,-500.0,0.00020821,2]
[321927422,1712639442828,-500.0,0.00020821,2]
[321927424,1712639442837,-4935.12,0.00020821,2]
[321927426,1712639442847,-512.14,0.00020821,2]
[321927428,1712639442858,-2449.28,0.00020821,2]
[321927430,1712639442868,-2736.96,0.00020821,2]
[321927432,1712639442878,-500.0,0.00020821,2]
[321927434,1712639442892,-2311.6,0.00020821,2]
[321927436,1712639442903,-7393.42,0.00020821,2]
[321927438,1712639442912,-7554.29,0.00020821,2]
[321927440,1712639442922,-500.0,0.00020821,2]
[321927442,1712639442932,-7766.41,0.00020821,2]
[321927444,1712639442941,-500.0,0.00020821,2]
[321927446,1712639442951,-500.0,0.00020821,2]
[321927448,1712639442960,-500.0,0.00020821,2]
[321927450,1712639442970,-2256.63,0.00020821,2]
[321927452,1712639442980,-500.0,0.00020821,2]
[321927454,1712639442990,-1367.64,0.00020821,2]
[321927456,1712639442999,-500.0,0.00020821,2]
[321927458,1712639443009,-500.0,0.00020821,2]
[321927460,1712639443018,-959.21,0.00020821,2]
[321927462,1712639443027,-500.0,0.00020821,2]
[321927464,1712639443037,-500.0,0.00020821,2]
[321927466,1712639443046,-500.0,0.00020821,2]
[321927468,1712639443055,-7099.51,0.00020821,2]
[321927470,1712639443064,-24346.47,0.00020821,2]
[321927472,1712639443075,-376.39683976,0.00020821,2]
[321927474,1712639443084,-500.0,0.00020821,2]
[321927476,1712639443093,-500.0,0.00020821,2]
[321927478,1712639443103,-19239.68,0.00020821,2]
[321927480,1712639443112,-500.0,0.00020821,2]
[321927482,1712639443121,-2510.88,0.00020821,2]
[321927484,1712639443130,-500.0,0.00020821,2]
[321927486,1712639443139,-500.0,0.00020821,2]
[321927489,1712639443149,-606.8,0.00020821,2]
[321927492,1712639443158,-761.36,0.00020821,2]
[321927494,1712639443168,-500.0,0.00020821,2]
[321927497,1712639443177,-500.0,0.00020821,2]
[321927499,1712639443188,-729.8,0.00020821,2]
[321927501,1712639443197,-3750.84,0.00020821,2]
[321927503,1712639443206,-500.0,0.00020821,2]
[321927505,1712639443215,-2350.47,0.00020821,2]
[321927507,1712639443224,-6393.59,0.00020821,2]
[321927509,1712639443234,-500.0,0.00020821,2]
[321927511,1712639443243,-3521.27,0.00020821,2]
[321927513,1712639443252,-1418.06,0.00020821,2]
[321927515,1712639443262,-500.0,0.00020821,2]
[321927517,1712639443271,-926.56,0.00020821,2]
[321927518,1712639443280,-500.0,0.00020821,2]
[321927519,1712639443290,-4832.13,0.00020821,2]
[321927520,1712639443299,-556.10047584,0.00020821,2]
[321927521,1712639443308,-1248.03,0.00020821,2]
[321927522,1712639443318,-1673.4,0.00020821,2]
[321927523,1712639443327,-3173.25,0.00020821,2]
[321927524,1712639443336,-500.0,0.00020821,2]
[321927525,1712639443348,-1994.79,0.00020821,2]
[321927526,1712639443357,-3285.89,0.00020821,2]
[321927527,1712639443367,-500.0,0.00020821,2]
[321927528,1712639443377,-11126.5,0.00020821,2]
[321927529,1712639443386,-2425.03,0.00020821,2]
[321927530,1712639443395,-500.0,0.00020821,2]
[321927531,1712639443404,-3687.27,0.00020821,2]
[321927532,1712639443414,-577.31,0.00020821,2]
[321927533,1712639443424,-505.78666866,0.00020821,2]
[321927534,1712639443434,-3009.24,0.00020821,2]
[321927535,1712639443444,-1478.19,0.00020821,2]
[321927536,1712639443453,-500.57226938,0.00020821,2]
[321927537,1712639443462,-24173.12,0.00020821,2]
[321927538,1712639443472,-4146.04,0.00020821,2]
[321927539,1712639443481,-500.0,0.00020821,2]
[321927540,1712639443492,-1156.2,0.00020821,2]
[321927541,1712639443501,-500.0,0.00020821,2]
[321927542,1712639443510,-500.0,0.00020821,2]
[321927543,1712639443518,-2913.48,0.00020821,2]
[321927544,1712639443527,-4472.88,0.00020821,2]
[321927545,1712639443537,-2913.48,0.00020821,2]
[321927546,1712639443546,-2913.48,0.00020821,2]
[321927547,1712639443555,-2913.48,0.00020821,2]
[321927548,1712639443564,-500.0,0.00020821,2]
[321927549,1712639443573,-4362.05,0.00020821,2]
[321927550,1712639443582,-479.3083547,0.00020821,2]
[321927551,1712639443592,-500.0,0.00020821,2]
[321927552,1712639443601,-5589.05,0.00020821,2]
[321927553,1712639443611,-500.0,0.00020821,2]
[321927554,1712639443620,-6527.95,0.00020821,2]
[321927555,1712639443630,-500.0,0.00020821,2]
[321927556,1712639443639,-537.01571298,0.00020821,2]
[321927557,1712639443648,-1504.99,0.00020821,2]
[321927558,1712639443657,-1449.69,0.00020821,2]
[321927559,1712639443666,-5522.64,0.00020821,2]
[321927560,1712639443676,-575.38,0.00020821,2]
[321927561,1712639443686,-500.0,0.00020821,2]
[321927562,1712639443695,-3108.61,0.00020821,2]
[321927563,1712639443704,-4209.21,0.00020821,2]
[321927564,1712639443713,-3060.79,0.00020821,2]
[321927565,1712639443724,-4729.07,0.00020821,2]
[321927566,1712639443733,-10843.63,0.00020821,2]
[321927567,1712639443743,-500.0,0.00020821,2]
[321927568,1712639443753,-757.14,0.00020821,2]
[321927569,1712639443764,-500.0,0.00020821,2]
[321927570,1712639443774,-644.63,0.00020821,2]
[321927571,1712639443783,-752.0,0.00020821,2]
[321927572,1712639443793,-500.0,0.00020821,2]
[321927573,1712639443804,-4319.14,0.00020821,2]
[321927574,1712639443817,-22818.47,0.00020821,2]
[321927575,1712639443827,-500.0,0.00020821,2]
[321927576,1712639443837,-500.0,0.00020821,2]
[321927577,1712639443846,-6244.69,0.00020821,2]
[321927578,1712639443856,-897.46,0.00020821,2]
[321927579,1712639443866,-500.0,0.00020821,2]
[321927580,1712639443875,-1101.23,0.00020821,2]
[321927581,1712639443884,-500.0,0.00020821,2]
[321927582,1712639443896,-500.0,0.00020821,2]
[321927583,1712639443905,-500.0,0.00020821,2]
[321927584,1712639443914,-20905.78,0.00020821,2]
[321927585,1712639443923,-500.0,0.00020821,2]
[321927586,1712639443933,-8079.37,0.00020821,2]
[321927587,1712639443942,-3413.24,0.00020821,2]
[321927588,1712639443952,-8138.01,0.00020821,2]
[321927589,1712639443962,-500.0,0.00020821,2]
[321927590,1712639443971,-500.0,0.00020821,2]
[321927591,1712639443982,-662.71,0.00020821,2]
[321927592,1712639443993,-500.0,0.00020821,2]
[321927593,1712639444003,-4961.12,0.00020821,2]
[321927594,1712639444014,-587.78674345,0.00020821,2]
[321927595,1712639444024,-2131.35,0.00020821,2]
[321927596,1712639444033,-500.0,0.00020821,2]
[321927597,1712639444044,-500.0,0.00020821,2]
[321927598,1712639444053,-1789.27,0.00020821,2]
[321927599,1712639444063,-538.1,0.00020821,2]
[321927600,1712639444073,-62170.42,0.00020821,2]
[321927601,1712639444083,-500.0,0.00020821,2]
[321927602,1712639444093,-8749.74,0.00020821,2]
[321927603,1712639444104,-500.0,0.00020821,2]
[321927604,1712639444113,-168.4508715,0.00020821,2]
[321927605,1712639444123,-524.12,0.00020821,2]
[321927606,1712639444132,-500.0,0.00020821,2]
[321927607,1712639444141,-512.87228725,0.00020821,2]
[321927608,1712639444150,-500.0,0.00020821,2]
[321927609,1712639444160,-500.0,0.00020821,2]
[321927610,1712639444169,-500.0,0.00020821,2]
[321927611,1712639444179,-4911.2,0.00020821,2]
[321927612,1712639444192,-500.0,0.00020821,2]
[321927613,1712639444202,-5376.41,0.00020821,2]
[321927614,1712639444211,-5705.53,0.00020821,2]
[321927615,1712639444220,-3762.18,0.00020821,2]
[321927616,1712639444229,-562.32937769,0.00020821,2]
[321927617,1712639444238,-500.0,0.00020821,2]
[321927618,1712639444247,-1324.37,0.00020821,2]
[321927619,1712639444255,-500.0,0.00020821,2]
[321927620,1712639444265,-589.27,0.00020821,2]
[321927621,1712639444274,-666.37,0.00020821,2]
[321927622,1712639444284,-500.0,0.00020821,2]
[321927623,1712639444293,-500.0,0.00020821,2]
[321927624,1712639444303,-2308.01,0.00020821,2]
[321927625,1712639444313,-11702.66,0.00020821,2]
[321927626,1712639444323,-338.50211589,0.00020821,2]
[321927627,1712639444334,-2021.89,0.00020821,2]
[321927628,1712639444345,-3881.83,0.00020821,2]
[321927629,1712639444356,-4206.43,0.00020821,2]
[321927630,1712639444366,-3873.79,0.00020821,2]
[321927631,1712639444376,-3972.94,0.00020821,2]
[321927632,1712639444386,-552.85558896,0.00020821,2]
[321927633,1712639444395,-502.48575886,0.00020821,2]
[321927634,1712639444404,-500.0,0.00020821,2]
[321927635,1712639444414,-648.18,0.00020821,2]
[321927636,1712639444424,-1507.36,0.00020821,2]
[321927637,1712639444437,-4346.75,0.00020821,2]
[321927638,1712639444446,-500.0,0.00020821,2]
[321927639,1712639444456,-500.0,0.00020821,2]
[321927640,1712639444466,-2385.09,0.00020821,2]
[321927641,1712639444476,-4214.41,0.00020821,2]
[321927642,1712639444485,-6169.0,0.00020821,2]
[321927643,1712639444494,-3733.3,0.00020821,2]
[321927644,1712639444504,-4525.93,0.00020821,2]
[321927645,1712639444513,-500.0,0.00020821,2]
[321927646,1712639444523,-500.0,0.00020821,2]
[321927647,1712639444532,-502.16830252,0.00020821,2]
[321927648,1712639444541,-500.0,0.00020821,2]
[321927649,1712639444550,-2434.74,0.00020821,2]
[321927650,1712639444560,-500.0,0.00020821,2]